[Event "Early-Titled-Tuesday-Blitz-October-10-2023"]
[Site "Chess.com"]
[Date "2023.10.10"]
[Round "4"]
[White "ArtemDyachuk"]
[Black "Juicy_Fork"]
[Result "1-0"]
[WhiteElo "2667"]
[BlackElo "2470"]
[TimeControl "180+1"]
[EndTime "8:38:35 PDT"]
[Termination "ArtemDyachuk won on time"]

1. e4 {[%clk 0:03:00.9]} 1... e5 {[%clk 0:02:58.1]} 2. Nf3 {[%clk 0:03:00.4]}
2... Nc6 {[%clk 0:02:57.1]} 3. Bb5 {[%clk 0:02:59.6]} 3... a6 {[%clk 0:02:56.2]}
4. Ba4 {[%clk 0:02:59.2]} 4... d6 {[%clk 0:02:56.9]} 5. O-O {[%clk 0:02:58.4]}
5... Bd7 {[%clk 0:02:55.3]} 6. c3 {[%clk 0:02:58.5]} 6... g6 {[%clk 0:02:54.5]}
7. d4 {[%clk 0:02:58.6]} 7... Bg7 {[%clk 0:02:54.4]} 8. Bg5 {[%clk 0:02:57.7]}
8... f6 {[%clk 0:02:52.6]} 9. Be3 {[%clk 0:02:56.3]} 9... Nh6 {[%clk 0:02:52.9]}
10. h3 {[%clk 0:02:55.4]} 10... O-O {[%clk 0:02:47.5]} 11. Na3 {[%clk
0:02:52.5]} 11... Nf7 {[%clk 0:02:44.6]} 12. Nc2 {[%clk 0:02:48.2]} 12... b5
{[%clk 0:02:37.6]} 13. Bb3 {[%clk 0:02:47.9]} 13... Na5 {[%clk 0:02:36.8]} 14.
Bd5 {[%clk 0:02:27.4]} 14... c6 {[%clk 0:02:35.4]} 15. Bxf7+ {[%clk 0:02:25.8]}
15... Rxf7 {[%clk 0:02:35.5]} 16. b3 {[%clk 0:02:23.9]} 16... Rc8 {[%clk
0:02:25.1]} 17. Qd2 {[%clk 0:02:21.4]} 17... c5 {[%clk 0:02:19.1]} 18. dxc5
{[%clk 0:02:19.8]} 18... dxc5 {[%clk 0:02:20]} 19. Rad1 {[%clk 0:02:19.2]} 19...
Qc7 {[%clk 0:02:17.5]} 20. Qd6 {[%clk 0:02:14.3]} 20... Qxd6 {[%clk 0:02:02.5]}
21. Rxd6 {[%clk 0:02:15.2]} 21... Bc6 {[%clk 0:01:57.7]} 22. b4 {[%clk
0:01:46.8]} 22... Nc4 {[%clk 0:01:42.5]} 23. Rxc6 {[%clk 0:01:28.5]} 23... Rxc6
{[%clk 0:01:42]} 24. bxc5 {[%clk 0:01:29.4]} 24... Rd7 {[%clk 0:01:19.1]} 25.
Rb1 {[%clk 0:01:11.8]} 25... Nxe3 {[%clk 0:01:11.3]} 26. Nxe3 {[%clk 0:01:12.7]}
26... Rxc5 {[%clk 0:01:11.6]} 27. Nd5 {[%clk 0:01:12.4]} 27... f5 {[%clk
0:01:10.7]} 28. Ng5 {[%clk 0:01:07.6]} 28... fxe4 {[%clk 0:01:01.8]} 29. Ne3
{[%clk 0:01:05]} 29... Rxc3 {[%clk 0:00:57.1]} 30. Nxe4 {[%clk 0:01:04]} 30...
Rc6 {[%clk 0:00:39]} 31. Rb3 {[%clk 0:00:23.8]} 31... h6 {[%clk 0:00:34]} 32. h4
{[%clk 0:00:23]} 32... Rd4 {[%clk 0:00:33.4]} 33. f3 {[%clk 0:00:18.8]} 33...
Bf8 {[%clk 0:00:28.7]} 34. h5 {[%clk 0:00:16.4]} 34... gxh5 {[%clk 0:00:25.8]}
35. Nf5 {[%clk 0:00:14.6]} 35... Rd1+ {[%clk 0:00:23.6]} 36. Kh2 {[%clk
0:00:14.8]} 36... Kf7 {[%clk 0:00:16]} 37. Ne3 {[%clk 0:00:08.8]} 37... Ra1
{[%clk 0:00:14.8]} 38. Rb2 {[%clk 0:00:07.4]} 38... Rcc1 {[%clk 0:00:14.5]} 39.
Nf5 {[%clk 0:00:06.7]} 39... Ke6 {[%clk 0:00:11.9]} 40. Ne3 {[%clk 0:00:04.9]}
40... h4 {[%clk 0:00:11.5]} 41. Kh3 {[%clk 0:00:05]} 41... h5 {[%clk 0:00:08.1]}
42. Kxh4 {[%clk 0:00:04.6]} 42... Be7+ {[%clk 0:00:06.5]} 43. Kxh5 {[%clk
0:00:04.8]} 43... Rh1+ {[%clk 0:00:05.3]} 44. Kg6 {[%clk 0:00:04.7]} 44... Rhc1
{[%clk 0:00:02]} 45. Nf5 {[%clk 0:00:04.5]} 45... Rc4 {[%clk 0:00:01.4]} 46. Rd2
{[%clk 0:00:04.1]} 1-0

[Event "Early-Titled-Tuesday-Blitz-October-10-2023"]
[Site "Chess.com"]
[Date "2023.10.10"]
[Round "4"]
[White "themind1hunter"]
[Black "Artemiki"]
[Result "0-1"]
[WhiteElo "2525"]
[BlackElo "2308"]
[TimeControl "180+1"]
[EndTime "8:38:36 PDT"]
[Termination "Artemiki won on time"]

1. e4 {[%clk 0:02:56.5]} 1... e5 {[%clk 0:02:57.1]} 2. Nf3 {[%clk 0:02:55.9]}
2... Nc6 {[%clk 0:02:56.9]} 3. Bb5 {[%clk 0:02:48.9]} 3... a6 {[%clk 0:02:55.5]}
4. Ba4 {[%clk 0:02:46.9]} 4... Nf6 {[%clk 0:02:55.3]} 5. O-O {[%clk 0:02:47]}
5... Be7 {[%clk 0:02:55.4]} 6. Re1 {[%clk 0:02:43.3]} 6... b5 {[%clk 0:02:53.9]}
7. Bb3 {[%clk 0:02:33.3]} 7... d6 {[%clk 0:02:49.5]} 8. c3 {[%clk 0:02:30.6]}
8... O-O {[%clk 0:02:49.6]} 9. d4 {[%clk 0:02:27]} 9... exd4 {[%clk 0:02:48.9]}
10. cxd4 {[%clk 0:02:26.6]} 10... Bg4 {[%clk 0:02:48.9]} 11. Be3 {[%clk
0:02:25.1]} 11... Na5 {[%clk 0:02:49.2]} 12. Bc2 {[%clk 0:02:24.6]} 12... Nc4
{[%clk 0:02:43.4]} 13. Bc1 {[%clk 0:02:23.9]} 13... c5 {[%clk 0:02:40.1]} 14. b3
{[%clk 0:02:21.6]} 14... Nb6 {[%clk 0:02:32.5]} 15. d5 {[%clk 0:02:17.4]} 15...
c4 {[%clk 0:02:26.5]} 16. Bb2 {[%clk 0:02:10.2]} 16... Nfd7 {[%clk 0:02:19.9]}
17. h3 {[%clk 0:02:09]} 17... Bxf3 {[%clk 0:02:18.9]} 18. Qxf3 {[%clk
0:02:09.9]} 18... Bf6 {[%clk 0:02:18.4]} 19. Bxf6 {[%clk 0:01:58]} 19... Qxf6
{[%clk 0:02:19]} 20. Nd2 {[%clk 0:01:57.3]} 20... Rac8 {[%clk 0:02:11.3]} 21.
Qxf6 {[%clk 0:01:34.6]} 21... Nxf6 {[%clk 0:02:09.8]} 22. b4 {[%clk 0:01:35.3]}
22... Nfd7 {[%clk 0:01:59.7]} 23. a3 {[%clk 0:01:32]} 23... Ne5 {[%clk
0:01:49.8]} 24. Re3 {[%clk 0:01:27.8]} 24... c3 {[%clk 0:01:12.4]} 25. Nb3
{[%clk 0:01:18]} 25... Rc7 {[%clk 0:00:45.2]} 26. f4 {[%clk 0:01:12.4]} 26...
Ng6 {[%clk 0:00:45.2]} 27. g3 {[%clk 0:01:10]} 27... Rfc8 {[%clk 0:00:43.7]} 28.
Nd4 {[%clk 0:01:03.8]} 28... Ne7 {[%clk 0:00:42]} 29. Kf2 {[%clk 0:00:53.4]}
29... f5 {[%clk 0:00:29.6]} 30. e5 {[%clk 0:00:44.1]} 30... Nexd5 {[%clk
0:00:25.8]} 31. exd6 {[%clk 0:00:44]} 31... Nxe3 {[%clk 0:00:25.1]} 32. dxc7
{[%clk 0:00:37.3]} 32... Nxc2 {[%clk 0:00:22.8]} 33. Nxc2 {[%clk 0:00:36.6]}
33... Rxc7 {[%clk 0:00:23.4]} 34. Rd1 {[%clk 0:00:29.3]} 34... Nc4 {[%clk
0:00:21.3]} 35. Rd3 {[%clk 0:00:27.9]} 35... Nd2 {[%clk 0:00:20.6]} 36. Rd8+
{[%clk 0:00:16.5]} 36... Kf7 {[%clk 0:00:20.4]} 37. Ra8 {[%clk 0:00:17.2]} 37...
Ne4+ {[%clk 0:00:15.7]} 38. Kf3 {[%clk 0:00:16.6]} 38... Rd7 {[%clk 0:00:12.6]}
39. Ne3 {[%clk 0:00:15.1]} 39... Rc7 {[%clk 0:00:08.6]} 40. Nc2 {[%clk
0:00:12.8]} 40... Rc6 {[%clk 0:00:06.7]} 41. g4 {[%clk 0:00:10.2]} 41... g6
{[%clk 0:00:06.5]} 42. Ra7+ {[%clk 0:00:09.6]} 42... Kg8 {[%clk 0:00:06]} 43. g5
{[%clk 0:00:03.8]} 43... Rd6 {[%clk 0:00:04.2]} 44. Ne3 {[%clk 0:00:02.5]} 44...
Rd2 {[%clk 0:00:04]} 0-1

[Event "Early-Titled-Tuesday-Blitz-October-10-2023"]
[Site "Chess.com"]
[Date "2023.10.10"]
[Round "4"]
[White "cristiano78"]
[Black "MaxLeto"]
[Result "0-1"]
[WhiteElo "2250"]
[BlackElo "2494"]
[TimeControl "180+1"]
[EndTime "8:38:37 PDT"]
[Termination "MaxLeto won by resignation"]

1. d4 {[%clk 0:03:00.8]} 1... h5 {[%clk 0:02:55.8]} 2. c3 {[%clk 0:03:00]} 2...
h4 {[%clk 0:02:56.7]} 3. h3 {[%clk 0:02:59.1]} 3... d5 {[%clk 0:02:57]} 4. Nf3
{[%clk 0:02:58.6]} 4... Bf5 {[%clk 0:02:57.2]} 5. Bg5 {[%clk 0:02:57.9]} 5... c5
{[%clk 0:02:57.5]} 6. Bxh4 {[%clk 0:02:53.6]} 6... Qb6 {[%clk 0:02:56.5]} 7. Qb3
{[%clk 0:02:47.3]} 7... c4 {[%clk 0:02:55.2]} 8. Qxb6 {[%clk 0:02:45.7]} 8...
axb6 {[%clk 0:02:56.1]} 9. Nbd2 {[%clk 0:02:45.7]} 9... e6 {[%clk 0:02:54.5]}
10. Bg3 {[%clk 0:02:45.8]} 10... b5 {[%clk 0:02:54.6]} 11. e3 {[%clk 0:02:40.8]}
11... Nc6 {[%clk 0:02:50.4]} 12. Be2 {[%clk 0:02:40.4]} 12... b4 {[%clk
0:02:48]} 13. O-O {[%clk 0:02:39.8]} 13... bxc3 {[%clk 0:02:39.7]} 14. bxc3
{[%clk 0:02:39.4]} 14... Ba3 {[%clk 0:02:40.6]} 15. Bxc4 {[%clk 0:02:09.1]}
15... dxc4 {[%clk 0:02:34.1]} 16. Nxc4 {[%clk 0:02:09.1]} 16... Nf6 {[%clk
0:02:24.5]} 17. Bd6 {[%clk 0:02:00.9]} 17... Bd3 {[%clk 0:02:18.6]} 18. Nxa3
{[%clk 0:01:54]} 18... Bxf1 {[%clk 0:02:15.1]} 19. Kxf1 {[%clk 0:01:54.2]} 19...
Ne4 {[%clk 0:02:09.5]} 20. Nb5 {[%clk 0:01:50.3]} 20... Ra5 {[%clk 0:02:06]} 21.
c4 {[%clk 0:01:47.1]} 21... Kd7 {[%clk 0:01:48.8]} 22. Ne5+ {[%clk 0:01:33.2]}
22... Nxe5 {[%clk 0:01:46]} 23. dxe5 {[%clk 0:01:31.4]} 23... Nd2+ {[%clk
0:01:41.3]} 24. Ke2 {[%clk 0:01:30.7]} 24... Nxc4 {[%clk 0:01:42.2]} 25. Nd4
{[%clk 0:01:22.3]} 25... Nxd6 {[%clk 0:01:35.3]} 26. exd6 {[%clk 0:01:22]} 26...
Rha8 {[%clk 0:01:31.5]} 27. Rb1 {[%clk 0:01:16.9]} 27... Rxa2+ {[%clk
0:01:27.2]} 28. Kf3 {[%clk 0:01:15.9]} 28... R8a7 {[%clk 0:01:21.5]} 29. Rc1
{[%clk 0:01:15]} 29... b6 {[%clk 0:01:03.7]} 30. Nb5 {[%clk 0:01:10.7]} 30...
Rb7 {[%clk 0:01:01]} 31. Rb1 {[%clk 0:00:51.1]} 31... Kc6 {[%clk 0:00:51.2]} 32.
h4 {[%clk 0:00:48.6]} 32... Ra5 {[%clk 0:00:48.8]} 33. Nd4+ {[%clk 0:00:47.8]}
33... Kxd6 {[%clk 0:00:48.4]} 34. g4 {[%clk 0:00:47.7]} 34... b5 {[%clk
0:00:46.6]} 35. Nb3 {[%clk 0:00:46.1]} 35... Ra2 {[%clk 0:00:38.8]} 36. Rd1+
{[%clk 0:00:44.2]} 36... Ke7 {[%clk 0:00:34.6]} 37. Rc1 {[%clk 0:00:36.8]} 37...
b4 {[%clk 0:00:33.9]} 38. h5 {[%clk 0:00:33.2]} 38... Rb2 {[%clk 0:00:33.9]} 39.
Nd4 {[%clk 0:00:32.9]} 39... b3 {[%clk 0:00:27.9]} 40. g5 {[%clk 0:00:32.4]}
40... Ra2 {[%clk 0:00:22]} 41. h6 {[%clk 0:00:31.8]} 41... gxh6 {[%clk
0:00:21.9]} 42. gxh6 {[%clk 0:00:31.8]} 42... Kf6 {[%clk 0:00:21.9]} 43. Rg1
{[%clk 0:00:23.5]} 43... Ra8 {[%clk 0:00:14.4]} 44. h7 {[%clk 0:00:20]} 44...
Rh8 {[%clk 0:00:14.4]} 45. Rb1 {[%clk 0:00:19.2]} 45... b2 {[%clk 0:00:14.1]}
46. Ke4 {[%clk 0:00:19.1]} 46... Rxh7 {[%clk 0:00:13.8]} 47. f4 {[%clk
0:00:19.3]} 47... Rh2 {[%clk 0:00:13.4]} 48. Nc6 {[%clk 0:00:17.8]} 48... Rc7
{[%clk 0:00:12.6]} 49. Ne5 {[%clk 0:00:15.8]} 49... Rc1 {[%clk 0:00:13.5]} 50.
Ng4+ {[%clk 0:00:12.8]} 50... Ke7 {[%clk 0:00:13]} 51. Nxh2 {[%clk 0:00:10.2]}
51... Rxb1 {[%clk 0:00:13.1]} 52. Nf3 {[%clk 0:00:10.6]} 52... Rd1 {[%clk
0:00:11.5]} 53. Ne5 {[%clk 0:00:10.4]} 53... b1=Q+ {[%clk 0:00:11.3]} 0-1

[Event "Early-Titled-Tuesday-Blitz-October-10-2023"]
[Site "Chess.com"]
[Date "2023.10.10"]
[Round "4"]
[White "maximnovik"]
[Black "GeorgiosSouleidis"]
[Result "0-1"]
[WhiteElo "2446"]
[BlackElo "2650"]
[TimeControl "180+1"]
[EndTime "8:38:39 PDT"]
[Termination "GeorgiosSouleidis won by resignation"]

1. e4 {[%clk 0:02:59.8]} 1... c5 {[%clk 0:03:00]} 2. Nf3 {[%clk 0:02:57.6]} 2...
e6 {[%clk 0:03:00.2]} 3. d4 {[%clk 0:02:57.7]} 3... cxd4 {[%clk 0:03:01.1]} 4.
Nxd4 {[%clk 0:02:58]} 4... Nf6 {[%clk 0:03:01.6]} 5. Nc3 {[%clk 0:02:58.1]} 5...
Nc6 {[%clk 0:03:01.8]} 6. Nxc6 {[%clk 0:02:54.1]} 6... bxc6 {[%clk 0:03:02.7]}
7. e5 {[%clk 0:02:54]} 7... Nd5 {[%clk 0:03:03]} 8. Ne4 {[%clk 0:02:54.5]} 8...
Qc7 {[%clk 0:03:03.3]} 9. f4 {[%clk 0:02:53.2]} 9... Qb6 {[%clk 0:03:03.1]} 10.
Bd3 {[%clk 0:02:50.1]} 10... f5 {[%clk 0:02:56]} 11. exf6 {[%clk 0:02:49.6]}
11... Nxf6 {[%clk 0:02:56.2]} 12. Nxf6+ {[%clk 0:02:48.4]} 12... gxf6 {[%clk
0:02:57.1]} 13. Qh5+ {[%clk 0:02:46.8]} 13... Kd8 {[%clk 0:02:54.6]} 14. Qf3
{[%clk 0:02:36.1]} 14... Bc5 {[%clk 0:02:20.7]} 15. b3 {[%clk 0:02:30.2]} 15...
Bd4 {[%clk 0:02:16.1]} 16. Rb1 {[%clk 0:02:27.1]} 16... f5 {[%clk 0:01:54.3]}
17. Bd2 {[%clk 0:02:25.5]} 17... Ba6 {[%clk 0:01:42.8]} 18. c3 {[%clk
0:02:13.8]} 18... Bxd3 {[%clk 0:01:33.1]} 19. Qxd3 {[%clk 0:02:13.8]} 19... Bf6
{[%clk 0:01:23.8]} 20. Be3 {[%clk 0:02:06.5]} 20... Qb5 {[%clk 0:01:21.5]} 21.
Ke2 {[%clk 0:01:49.5]} 21... Qxd3+ {[%clk 0:01:13.6]} 22. Kxd3 {[%clk
0:01:49.4]} 22... Kc7 {[%clk 0:01:10]} 23. c4 {[%clk 0:01:49]} 23... a5 {[%clk
0:01:06.3]} 24. c5 {[%clk 0:01:49.2]} 24... a4 {[%clk 0:01:05.7]} 25. b4 {[%clk
0:01:49.3]} 25... h5 {[%clk 0:01:01.7]} 26. Rhd1 {[%clk 0:01:45.9]} 26... h4
{[%clk 0:01:00.7]} 27. Kc4 {[%clk 0:01:43.2]} 27... Rhg8 {[%clk 0:00:59.8]} 28.
Rd2 {[%clk 0:01:43.2]} 28... Rg4 {[%clk 0:00:57.4]} 29. Rbd1 {[%clk 0:01:42.3]}
29... Rd8 {[%clk 0:00:56.9]} 30. b5 {[%clk 0:01:32.9]} 30... cxb5+ {[%clk
0:00:55.5]} 31. Kxb5 {[%clk 0:01:32.9]} 31... e5 {[%clk 0:00:48.1]} 32. Rd6
{[%clk 0:00:33]} 32... exf4 {[%clk 0:00:42.3]} 33. Bd2 {[%clk 0:00:19.5]} 33...
Rb8+ {[%clk 0:00:35.1]} 34. Ka6 {[%clk 0:00:19.7]} 34... Ra8+ {[%clk 0:00:31.8]}
35. Kb5 {[%clk 0:00:19.9]} 35... Be7 {[%clk 0:00:25.4]} 36. Ba5+ {[%clk
0:00:19.4]} 36... Rxa5+ {[%clk 0:00:25.8]} 37. Kxa5 {[%clk 0:00:19.8]} 37...
Bxd6 {[%clk 0:00:26.5]} 38. cxd6+ {[%clk 0:00:19.5]} 38... Kc6 {[%clk
0:00:26.2]} 39. Rd2 {[%clk 0:00:19.8]} 39... f3 {[%clk 0:00:25.3]} 40. gxf3
{[%clk 0:00:20]} 40... Rf4 {[%clk 0:00:25.6]} 41. Rf2 {[%clk 0:00:20.4]} 41...
h3 {[%clk 0:00:25.9]} 42. a3 {[%clk 0:00:20.7]} 42... Kxd6 {[%clk 0:00:26.3]}
43. Rd2+ {[%clk 0:00:20.7]} 43... Ke6 {[%clk 0:00:26.9]} 44. Kb5 {[%clk
0:00:20.8]} 44... d5 {[%clk 0:00:17.2]} 45. Re2+ {[%clk 0:00:21]} 45... Kd6
{[%clk 0:00:17.5]} 46. Rd2 {[%clk 0:00:21.3]} 46... Rxf3 {[%clk 0:00:17.6]} 47.
Kxa4 {[%clk 0:00:21.4]} 47... f4 {[%clk 0:00:16.8]} 48. Kb5 {[%clk 0:00:21.6]}
48... Rxa3 {[%clk 0:00:16.7]} 49. Rf2 {[%clk 0:00:21.3]} 49... f3 {[%clk
0:00:16.5]} 50. Kb4 {[%clk 0:00:22.2]} 50... Re3 {[%clk 0:00:16.1]} 51. Ra2
{[%clk 0:00:21.7]} 51... Ke5 {[%clk 0:00:16.3]} 52. Kc5 {[%clk 0:00:20.1]} 52...
Rc3+ {[%clk 0:00:16]} 53. Kb4 {[%clk 0:00:20.5]} 53... Rc4+ {[%clk 0:00:16.3]}
54. Kb3 {[%clk 0:00:20.8]} 54... Ke4 {[%clk 0:00:16.5]} 55. Ra8 {[%clk
0:00:20.6]} 55... f2 {[%clk 0:00:16.4]} 56. Rf8 {[%clk 0:00:20.4]} 56... Ke3
{[%clk 0:00:16.4]} 57. Re8+ {[%clk 0:00:20.9]} 57... Re4 {[%clk 0:00:16.5]} 58.
Rf8 {[%clk 0:00:21.2]} 58... Ke2 {[%clk 0:00:15.1]} 59. Kc2 {[%clk 0:00:21.4]}
59... f1=Q {[%clk 0:00:14.9]} 60. Rxf1 {[%clk 0:00:21.9]} 60... Kxf1 {[%clk
0:00:15.8]} 0-1

[Event "Early-Titled-Tuesday-Blitz-October-10-2023"]
[Site "Chess.com"]
[Date "2023.10.10"]
[Round "4"]
[White "karinachess1"]
[Black "GiorgianBarbosa"]
[Result "1/2-1/2"]
[WhiteElo "2622"]
[BlackElo "2414"]
[TimeControl "180+1"]
[EndTime "8:38:42 PDT"]
[Termination "Game drawn by repetition"]

1. d4 {[%clk 0:03:00.9]} 1... Nf6 {[%clk 0:02:59.9]} 2. c4 {[%clk 0:03:01.2]}
2... e6 {[%clk 0:03:00.6]} 3. Nc3 {[%clk 0:03:01.2]} 3... d5 {[%clk 0:03:01.5]}
4. cxd5 {[%clk 0:03:01.5]} 4... exd5 {[%clk 0:03:02.4]} 5. Bg5 {[%clk
0:03:01.5]} 5... c6 {[%clk 0:03:03.3]} 6. e3 {[%clk 0:03:01.9]} 6... Be7 {[%clk
0:03:03.3]} 7. Bd3 {[%clk 0:03:02.3]} 7... Nbd7 {[%clk 0:03:04.2]} 8. h3 {[%clk
0:03:01.9]} 8... O-O {[%clk 0:03:01.7]} 9. Qc2 {[%clk 0:02:58.8]} 9... Re8
{[%clk 0:03:01]} 10. Nf3 {[%clk 0:02:56.6]} 10... Nf8 {[%clk 0:02:59.5]} 11. Ne5
{[%clk 0:02:56.8]} 11... N6d7 {[%clk 0:02:55]} 12. Bf4 {[%clk 0:02:29.3]} 12...
Nxe5 {[%clk 0:02:47.3]} 13. Bxe5 {[%clk 0:02:28.6]} 13... Bd6 {[%clk 0:02:42.8]}
14. Bxd6 {[%clk 0:02:23.2]} 14... Qxd6 {[%clk 0:02:43.2]} 15. O-O {[%clk
0:02:23.4]} 15... Ng6 {[%clk 0:02:32]} 16. Rab1 {[%clk 0:02:12.6]} 16... Nh4
{[%clk 0:02:25.4]} 17. Qe2 {[%clk 0:02:05.3]} 17... Qh6 {[%clk 0:02:20.6]} 18.
f4 {[%clk 0:01:29.1]} 18... g6 {[%clk 0:02:01.8]} 19. Rbe1 {[%clk 0:01:26.6]}
19... Bf5 {[%clk 0:01:55]} 20. Bxf5 {[%clk 0:01:26.4]} 20... Nxf5 {[%clk
0:01:53.4]} 21. Qf2 {[%clk 0:01:27]} 21... Nd6 {[%clk 0:01:40.9]} 22. Qf3 {[%clk
0:01:11.8]} 22... f5 {[%clk 0:01:40.3]} 23. b3 {[%clk 0:00:57.3]} 23... Ne4
{[%clk 0:01:38.8]} 24. Nxe4 {[%clk 0:00:54.9]} 24... Rxe4 {[%clk 0:01:37.7]} 25.
Rc1 {[%clk 0:00:51]} 25... Rae8 {[%clk 0:01:37.2]} 26. Rc3 {[%clk 0:00:50.1]}
26... R8e6 {[%clk 0:01:15]} 27. b4 {[%clk 0:00:47]} 27... Qf8 {[%clk 0:01:14.3]}
28. Rb1 {[%clk 0:00:43.3]} 28... Qe8 {[%clk 0:01:09]} 29. Rbb3 {[%clk
0:00:43.1]} 29... a6 {[%clk 0:01:06.7]} 30. a4 {[%clk 0:00:42.2]} 30... Kg7
{[%clk 0:00:57.6]} 31. Kf2 {[%clk 0:00:42.3]} 31... h5 {[%clk 0:00:57.3]} 32. b5
{[%clk 0:00:32.1]} 32... axb5 {[%clk 0:00:49.7]} 33. axb5 {[%clk 0:00:33]} 33...
cxb5 {[%clk 0:00:50.1]} 34. Rc7+ {[%clk 0:00:33.1]} 34... Re7 {[%clk 0:00:50.5]}
35. Rxe7+ {[%clk 0:00:32.9]} 35... Qxe7 {[%clk 0:00:48.8]} 36. Rxb5 {[%clk
0:00:32.9]} 36... Qd7 {[%clk 0:00:42.1]} 37. Qe2 {[%clk 0:00:25.1]} 37... Re7
{[%clk 0:00:32.3]} 38. Qb2 {[%clk 0:00:23.8]} 38... Qe6 {[%clk 0:00:19.6]} 39.
Qb3 {[%clk 0:00:22.7]} 39... Qc6 {[%clk 0:00:20.2]} 40. Rxd5 {[%clk 0:00:19.4]}
40... Qc1 {[%clk 0:00:14.9]} 41. Re5 {[%clk 0:00:15.1]} 41... Qd2+ {[%clk
0:00:13.8]} 42. Kf3 {[%clk 0:00:11.1]} 42... Rc7 {[%clk 0:00:12.3]} 43. Qa3
{[%clk 0:00:06.7]} 43... Qd1+ {[%clk 0:00:07.8]} 44. Kg3 {[%clk 0:00:06.7]}
44... h4+ {[%clk 0:00:06.1]} 45. Kh2 {[%clk 0:00:06.9]} 45... Qe1 {[%clk
0:00:03.4]} 46. Re7+ {[%clk 0:00:06.5]} 46... Kh6 {[%clk 0:00:02.3]} 47. Rxc7
{[%clk 0:00:03.9]} 47... Qg3+ {[%clk 0:00:02.7]} 48. Kg1 {[%clk 0:00:04.1]}
48... Qe1+ {[%clk 0:00:03.6]} 49. Kh2 {[%clk 0:00:04.6]} 49... Qg3+ {[%clk
0:00:04.5]} 50. Kg1 {[%clk 0:00:05.2]} 50... Qe1+ {[%clk 0:00:05.4]} 51. Kh2
{[%clk 0:00:05.8]} 1/2-1/2